fUST/lending_fUST_20260501
["ID","MTS","AMOUNT","RATE_DAILY","PERIOD"]
[421404053,1777565451000,-500.0,0.00019452,2]
[421404055,1777565451000,-500.0,0.00019452,2]
[421404052,1777565451000,-500.0,0.00019452,2]
[421404054,1777565451000,-500.0,0.00019452,2]
[421404059,1777565451000,-591.23,0.00019452,2]
[421404044,1777565451000,-500.0,0.00019452,2]
[421404058,1777565451000,-5864.45,0.00019452,2]
[421404057,1777565451000,-500.0,0.00019452,2]
[421404060,1777565451000,-500.0,0.00019452,2]
[421404066,1777565451000,-13795.46,0.00019452,2]
[421404061,1777565451000,-500.0,0.00019452,2]
[421404064,1777565451000,-500.0,0.00019452,2]
[421404063,1777565451000,-500.0,0.00019452,2]
[421404062,1777565451000,-6275.27,0.00019452,2]
[421404065,1777565451000,-500.0,0.00019452,2]
[421404067,1777565451000,-698.78,0.00019452,2]
[421404069,1777565451000,-500.0,0.00019452,2]
[421404068,1777565451000,-444.41228463,0.00019452,2]
[421404056,1777565451000,-500.0,0.00019452,2]
[421404041,1777565451000,-752.55,0.00019452,2]
[421404015,1777565451000,-500.0,0.00019452,2]
[421404042,1777565451000,-500.0,0.00019452,2]
[421404019,1777565451000,-500.0,0.00019452,2]
[421404011,1777565451000,-500.0,0.00019452,2]
[421404018,1777565451000,-7308.23,0.00019452,2]
[421404016,1777565451000,-610.61,0.00019452,2]
[421404022,1777565451000,-500.0,0.00019452,2]
[421404027,1777565451000,-893.86,0.00019452,2]
[421404043,1777565451000,-500.0,0.00019452,2]
[421404025,1777565451000,-2889.53,0.00019452,2]
[421404026,1777565451000,-500.0,0.00019452,2]
[421404034,1777565451000,-275.79177199,0.00019452,2]
[421404023,1777565451000,-150.78316931,0.00019452,2]
[421404033,1777565451000,-3932.87,0.00019452,2]
[421404024,1777565451000,-500.0,0.00019452,2]
[421404030,1777565451000,-1313.8,0.00019452,2]
[421404031,1777565451000,-287.07599877,0.00019452,2]
[421404032,1777565451000,-500.0,0.00019452,2]
[421404028,1777565451000,-500.0,0.00019452,2]
[421404036,1777565451000,-2217.18,0.00019452,2]
[421404038,1777565451000,-500.0,0.00019452,2]
[421404035,1777565451000,-500.0,0.00019452,2]
[421404039,1777565451000,-500.0,0.00019452,2]
[421404037,1777565451000,-500.0,0.00019452,2]
[421404046,1777565451000,-1139.11,0.00019452,2]
[421404040,1777565451000,-3690.61,0.00019452,2]
[421404029,1777565451000,-13338.02,0.00019452,2]
[421404115,1777565452000,-500.0,0.00019452,2]
[421404113,1777565452000,-500.0,0.00019452,2]
[421404102,1777565452000,-500.0,0.00019452,2]
[421404105,1777565452000,-500.0,0.00019452,2]
[421404097,1777565452000,-500.0,0.00019452,2]
[421404098,1777565452000,-500.0,0.00019452,2]
[421404100,1777565452000,-661.55,0.00019452,2]
[421404107,1777565452000,-4394.25,0.00019452,2]
[421404104,1777565452000,-500.0,0.00019452,2]
[421404099,1777565452000,-17819.08,0.00019452,2]
[421404114,1777565452000,-500.0,0.00019452,2]
[421404123,1777565452000,-500.0,0.00019452,2]
[421404108,1777565452000,-500.0,0.00019452,2]
[421404110,1777565452000,-9088.636363,0.00019452,2]
[421404116,1777565452000,-500.0,0.00019452,2]
[421404118,1777565452000,-1107.52,0.00019452,2]
[421404119,1777565452000,-1928.39,0.00019452,2]
[421404111,1777565452000,-12777.77,0.00019452,2]
[421404112,1777565452000,-3814.56,0.00019452,2]
[421404117,1777565452000,-500.0,0.00019452,2]
[421404120,1777565452000,-500.0,0.00019452,2]
[421404122,1777565452000,-2110.58,0.00019452,2]
[421404101,1777565452000,-500.0,0.00019452,2]
[421404109,1777565452000,-500.0,0.00019452,2]
[421404103,1777565452000,-500.0,0.00019452,2]
[421404087,1777565452000,-554.61,0.00019452,2]
[421404096,1777565452000,-552.74882657,0.00019452,2]
[421404071,1777565452000,-500.0,0.00019452,2]
[421404076,1777565452000,-500.0,0.00019452,2]
[421404079,1777565452000,-500.0,0.00019452,2]
[421404075,1777565452000,-500.0,0.00019452,2]
[421404080,1777565452000,-1233.98,0.00019452,2]
[421404074,1777565452000,-500.0,0.00019452,2]
[421404073,1777565452000,-748.02,0.00019452,2]
[421404077,1777565452000,-500.0,0.00019452,2]
[421404078,1777565452000,-6305.66,0.00019452,2]
[421404072,1777565452000,-7462.02,0.00019452,2]
[421404082,1777565452000,-569.20133124,0.00019452,2]
[421404081,1777565452000,-500.0,0.00019452,2]
[421404083,1777565452000,-3759.57,0.00019452,2]
[421404094,1777565452000,-500.0,0.00019452,2]
[421404121,1777565452000,-500.0,0.00019452,2]
[421404086,1777565452000,-500.0,0.00019452,2]
[421404095,1777565452000,-500.0,0.00019452,2]
[421404084,1777565452000,-500.0,0.00019452,2]
[421404085,1777565452000,-1192.08,0.00019452,2]
[421404089,1777565452000,-20632.83,0.00019452,2]
[421404088,1777565452000,-500.0,0.00019452,2]
[421404090,1777565452000,-500.0,0.00019452,2]
[421404091,1777565452000,-1534.68,0.00019452,2]
[421404093,1777565452000,-693.29,0.00019452,2]
[421404092,1777565452000,-500.0,0.00019452,2]
[421404106,1777565452000,-835.69,0.00019452,2]
[421404124,1777565452000,-500.0,0.00019452,2]
[421404142,1777565452000,-657.12,0.00019452,2]
[421404125,1777565452000,-500.0,0.00019452,2]
[421404157,1777565452000,-3282.79,0.00019452,2]
[421404159,1777565452000,-17529.56,0.00019452,2]
[421404158,1777565452000,-1939.34,0.00019452,2]
[421404160,1777565452000,-219.4501049,0.00019452,2]
[421404166,1777565452000,-500.0,0.00019452,2]
[421404165,1777565452000,-2452.22,0.00019452,2]
[421404163,1777565452000,-562.28,0.00019452,2]
[421404161,1777565452000,-500.0,0.00019452,2]
[421404156,1777565452000,-4008.31,0.00019452,2]
[421404162,1777565452000,-500.0,0.00019452,2]
[421404164,1777565452000,-500.0,0.00019452,2]
[421404155,1777565452000,-500.0,0.00019452,2]
[421404168,1777565452000,-2082.27,0.00019452,2]
[421404172,1777565452000,-1232.21,0.00019452,2]
[421404179,1777565452000,-22615.82908902,0.00019452,2]
[421404178,1777565452000,-500.0,0.00019452,2]
[421404174,1777565452000,-12544.04,0.00019452,2]
[421404167,1777565452000,-476.78483046,0.00019452,2]
[421404169,1777565452000,-12505.53,0.00019452,2]
[421404177,1777565452000,-500.0,0.00019452,2]
[421404171,1777565452000,-1066.62,0.00019452,2]
[421404170,1777565452000,-1134.64,0.00019452,2]
[421404173,1777565452000,-500.0,0.00019452,2]
[421404175,1777565452000,-5494.52,0.00019452,2]
[421404176,1777565452000,-286.49543198,0.00019452,2]
[421404129,1777565452000,-500.0,0.00019452,2]
[421404149,1777565452000,-7365.23,0.00019452,2]
[421404148,1777565452000,-1357.49,0.00019452,2]
[421404127,1777565452000,-500.0,0.00019452,2]
[421404128,1777565452000,-1188.67,0.00019452,2]
[421404126,1777565452000,-782.81,0.00019452,2]
[421404130,1777565452000,-500.0,0.00019452,2]
[421404131,1777565452000,-500.0,0.00019452,2]
[421404141,1777565452000,-500.0,0.00019452,2]
[421404132,1777565452000,-5825.58,0.00019452,2]
[421404139,1777565452000,-722.26,0.00019452,2]
[421404136,1777565452000,-1366.61,0.00019452,2]
[421404138,1777565452000,-7878.9,0.00019452,2]
[421404133,1777565452000,-6172.69,0.00019452,2]
[421404153,1777565452000,-1021.88,0.00019452,2]
[421404140,1777565452000,-1092.31,0.00019452,2]
[421404135,1777565452000,-1205.86,0.00019452,2]
[421404137,1777565452000,-500.0,0.00019452,2]
[421404144,1777565452000,-611.35,0.00019452,2]
[421404143,1777565452000,-500.0,0.00019452,2]
[421404154,1777565452000,-500.0,0.00019452,2]
[421404145,1777565452000,-500.0,0.00019452,2]
[421404147,1777565452000,-521.03,0.00019452,2]
[421404146,1777565452000,-1565.1,0.00019452,2]
[421404150,1777565452000,-500.0,0.00019452,2]
[421404152,1777565452000,-6178.59,0.00019452,2]
[421404070,1777565452000,-500.0,0.00019452,2]
[421404134,1777565452000,-259.55710556,0.00019452,2]
[421404151,1777565452000,-1336.45,0.00019452,2]
[421404184,1777565804000,155.0,0.00010999,30]
[421404221,1777566632000,-1093.98275846,0.00010758,2]
[421404345,1777566638000,-3728.2611808,0.00016361,2]
[421404282,1777566638000,-300.0,0.00012383,2]
[421404270,1777566638000,-151.0,0.00011993,2]
[421404273,1777566638000,-164.55288167,0.00011993,2]
[421404276,1777566638000,-633.55043137,0.00012209,2]
[421404275,1777566638000,-500.0,0.00012209,2]
[421404280,1777566638000,-300.0,0.00012383,2]
[421404278,1777566638000,-300.0,0.00012383,2]
[421404279,1777566638000,-300.0,0.00012383,2]
[421404277,1777566638000,-300.0,0.00012383,2]
[421404274,1777566638000,-28887.96030939,0.00012,2]
[421404284,1777566638000,-300.0,0.00012383,2]
[421404293,1777566638000,-500.0,0.00012613,2]
[421404291,1777566638000,-300.0,0.00012383,2]
[421404287,1777566638000,-300.0,0.00012383,2]
[421404285,1777566638000,-300.0,0.00012383,2]
[421404294,1777566638000,-200.0,0.00012613,2]
[421404286,1777566638000,-300.0,0.00012383,2]
[421404295,1777566638000,-200.0,0.00012613,2]
[421404283,1777566638000,-300.0,0.00012383,2]
[421404290,1777566638000,-300.0,0.00012383,2]
[421404289,1777566638000,-300.0,0.00012383,2]
[421404288,1777566638000,-300.0,0.00012383,2]
[421404281,1777566638000,-300.0,0.00012383,2]
[421404272,1777566638000,-151.0,0.00011993,2]
[421404271,1777566638000,-151.0,0.00011993,2]
[421404246,1777566638000,-3906.01724154,0.00010758,2]
[421404248,1777566638000,-977.0,0.00011428,2]
[421404247,1777566638000,-323.91001145,0.00010867,2]
[421404252,1777566638000,-151.0,0.00011993,2]
[421404254,1777566638000,-151.0,0.00011993,2]
[421404251,1777566638000,-2787.8941325,0.00011977,2]
[421404250,1777566638000,-300.0,0.00011976,2]
[421404249,1777566638000,-2688.4225,0.00011429,2]
[421404253,1777566638000,-181.23248163,0.00011993,2]
[421404255,1777566638000,-151.0,0.00011993,2]
[421404292,1777566638000,-2891.0462154,0.00012525,2]
[421404257,1777566638000,-151.0,0.00011993,2]
[421404267,1777566638000,-151.0,0.00011993,2]
[421404258,1777566638000,-151.0,0.00011993,2]
[421404256,1777566638000,-151.0,0.00011993,2]
[421404259,1777566638000,-151.0,0.00011993,2]
[421404269,1777566638000,-151.0,0.00011993,2]
[421404266,1777566638000,-151.0,0.00011993,2]
[421404262,1777566638000,-151.0,0.00011993,2]
[421404261,1777566638000,-151.0,0.00011993,2]
[421404260,1777566638000,-151.0,0.00011993,2]
[421404264,1777566638000,-151.0,0.00011993,2]
[421404268,1777566638000,-151.0,0.00011993,2]
[421404297,1777566638000,-600.0,0.0001263,2]
[421404263,1777566638000,-151.0,0.00011993,2]
[421404309,1777566638000,-500.0,0.00013698,2]
[421404325,1777566638000,-204.0,0.00015033,2]
[421404327,1777566638000,-864.0,0.00015282,2]
[421404329,1777566638000,-52991.41981347,0.000155,2]
[421404328,1777566638000,-317.02134054,0.00015295,2]
[421404331,1777566638000,-160.0,0.00015677,2]
[421404341,1777566638000,-10309.83952614,0.00016,2]
[421404330,1777566638000,-317.02134054,0.00015577,2]
[421404332,1777566638000,-7367.74,0.0001568,3]
[421404333,1777566638000,-14735.48,0.0001569,3]
[421404334,1777566638000,-206.14945347,0.000157,2]
[421404326,1777566638000,-3466.95988149,0.00015265,2]
[421404339,1777566638000,-3595.2373971,0.00015813,2]
[421404335,1777566638000,-10309.83952614,0.000157,2]
[421404340,1777566638000,-823.0,0.00015845,2]
[421404337,1777566638000,-10309.83952614,0.000158,2]
[421404343,1777566638000,-10309.83952614,0.000162,2]
[421404342,1777566638000,-5063.05991128,0.0001606,2]
[421404344,1777566638000,-10309.83952614,0.000163,2]
[421404346,1777566638000,-338.7401937,0.00016438,2]
[421404347,1777566638000,-500.0,0.00016474,2]
[421404348,1777566638000,-500.0,0.00016474,2]
[421404308,1777566638000,-3108.94147761,0.00013621,2]
[421404336,1777566638000,-206.14945347,0.000158,2]
[421404324,1777566638000,-317.02134054,0.00015013,2]
[421404338,1777566638000,-1854.20746333,0.000158,2]
[421404320,1777566638000,-317.02134057,0.00014449,2]
[421404307,1777566638000,-500.0,0.00013435,2]
[421404323,1777566638000,-317.02134054,0.00014731,2]
[421404296,1777566638000,-200.0,0.00012613,2]
[421404298,1777566638000,-500.0,0.00012887,2]
[421404299,1777566638000,-1854.20746334,0.000129,2]
[421404303,1777566638000,-500.0,0.00013161,2]
[421404305,1777566638000,-1854.20746333,0.0001334,2]
[421404304,1777566638000,-4072.46422003,0.00013187,2]
[421404306,1777566638000,-210.5143,0.00013355,2]
[421404300,1777566638000,-177.0,0.00013033,2]
[421404302,1777566638000,-420.0,0.00013147,2]
[421404301,1777566638000,-2998.01492537,0.00013073,2]
[421404315,1777566638000,-500.0,0.00013709,2]
[421404314,1777566638000,-231.64,0.000137,2]
[421404313,1777566638000,-1000.0,0.00013699,2]
[421404321,1777566638000,-1854.20746333,0.0001457,2]
[421404322,1777566638000,-3343.25928784,0.00014717,2]
[421404318,1777566638000,-3223.97231228,0.00014169,2]
[421404310,1777566638000,-500.0,0.00013698,2]
[421404312,1777566638000,-1000.0,0.00013699,2]
[421404316,1777566638000,-720.0,0.00013893,2]
[421404317,1777566638000,-291.38989044,0.00013983,2]
[421404319,1777566638000,-587.0,0.00014433,2]
[421404311,1777566638000,-547.35693001,0.00013698,2]
[421404385,1777566639000,-646.0,0.0001789,2]
[421404381,1777566639000,-160.0,0.00017836,2]
[421404387,1777566639000,-185.0,0.0001789,2]
[421404401,1777566639000,-221.47176059,0.00018,2]
[421404389,1777566639000,-1671.55752442,0.000179,2]
[421404388,1777566639000,-442.0,0.0001789,2]
[421404382,1777566639000,-1680.618197,0.00017836,2]
[421404386,1777566639000,-1410.0,0.0001789,2]
[421404383,1777566639000,-3201.236394,0.00017836,2]
[421404380,1777566639000,-188.6,0.00017817,2]
[421404391,1777566639000,-1529.87152756,0.00018,2]
[421404384,1777566639000,-2212.0,0.0001789,2]
[421404390,1777566639000,-1671.55752442,0.00018,2]
[421404406,1777566639000,-209.93,0.00018,2]
[421404394,1777566639000,-151.0,0.00018,2]
[421404393,1777566639000,-168.59870127,0.00018,2]
[421404397,1777566639000,-169.06068763,0.00018,2]
[421404396,1777566639000,-283.4778483,0.00018,2]
[421404398,1777566639000,-179.13167079,0.00018,2]
[421404399,1777566639000,-172.06312046,0.00018,2]
[421404400,1777566639000,-226.11831747,0.00018,2]
[421404402,1777566639000,-241.78217586,0.00018,2]
[421404405,1777566639000,-209.93,0.00018,2]
[421404412,1777566639000,-151.0,0.00018,2]
[421404407,1777566639000,-1683.50695631,0.00018,2]
[421404373,1777566639000,-4009.25649773,0.00017457,2]
[421404392,1777566639000,-186.6749303,0.00018,2]
[421404375,1777566639000,-188.162251,0.00017532,7]
[421404351,1777566639000,-10309.83952614,0.000166,2]
[421404372,1777566639000,-1152.0,0.00017394,2]
[421404353,1777566639000,-1000.0,0.0001681,2]
[421404354,1777566639000,-3866.20684448,0.00016909,2]
[421404413,1777566639000,-287.919582,0.00018,2]
[421404349,1777566639000,-500.28848137,0.00016474,2]
[421404350,1777566639000,-10309.83952614,0.000165,2]
[421404352,1777566639000,-10309.83952614,0.000168,2]
[421404356,1777566639000,-10309.83952614,0.00017,2]
[421404364,1777566639000,-10309.83952614,0.000171,2]
[421404365,1777566639000,-17022.60357959,0.0001718,2]
[421404366,1777566639000,-1671.55752442,0.000172,2]
[421404355,1777566639000,-1671.55752442,0.00017,2]
[421404358,1777566639000,-1854.20746333,0.00017031,2]
[421404357,1777566639000,-95350.8537626,0.00017,2]
[421404362,1777566639000,-30715.18773036,0.0001706,3]
[421404359,1777566639000,-231.0,0.00017033,2]
[421404360,1777566639000,-14735.48,0.0001705,3]
[421404361,1777566639000,-12428.33226964,0.0001706,3]
[421404363,1777566639000,-29470.96,0.0001706,3]
[421404368,1777566639000,-160.0,0.00017237,2]
[421404369,1777566639000,-2777.657883,0.00017237,2]
[421404367,1777566639000,-188.795517,0.00017208,7]
[421404379,1777566639000,-151.0,0.000177,2]
[421404378,1777566639000,-1671.55752442,0.000177,2]
[421404370,1777566639000,-5395.315767,0.00017237,2]
[421404374,1777566639000,-1671.55752442,0.000175,2]
[421404376,1777566639000,-1100.54957728,0.00017589,2]
[421404377,1777566639000,-2164.45241535,0.000176,2]
[421404371,1777566639000,-1671.55752442,0.000173,2]
[421404410,1777566639000,-151.0,0.00018,2]
[421404472,1777566639000,-151.0,0.00018904,2]
[421404408,1777566639000,-151.0,0.00018,2]
[421404440,1777566639000,-172.06312046,0.000184,2]
[421404449,1777566639000,-1000.0,0.00018491,2]
[421404442,1777566639000,-188.6,0.00018412,2]
[421404451,1777566639000,-1529.87152756,0.000185,2]
[421404447,1777566639000,-324.26757007,0.00018491,2]
[421404443,1777566639000,-537.6845,0.00018436,2]
[421404450,1777566639000,-244.0,0.00018491,2]
[421404444,1777566639000,-438.44861291,0.00018436,2]
[421404453,1777566639000,-241.78217586,0.000185,2]
[421404452,1777566639000,-168.59870127,0.000185,2]
[421404454,1777566639000,-350.0,0.00018528,2]
[421404455,1777566639000,-617.91014963,0.00018553,2]
[421404460,1777566639000,-241.78217586,0.000187,2]
[421404461,1777566639000,-791.0,0.000187,2]
[421404456,1777566639000,-1671.55752442,0.000186,2]
[421404457,1777566639000,-151.0,0.000186,2]
[421404458,1777566639000,-188.6,0.00018611,2]
[421404459,1777566639000,-1529.87152756,0.000187,2]
[421404464,1777566639000,-151.0,0.00018767,2]
[421404463,1777566639000,-831.0,0.0001872,2]
[421404462,1777566639000,-425.0,0.00018715,2]
[421404465,1777566639000,-188.6,0.00018809,2]
[421404466,1777566639000,-151.0,0.000189,2]
[421404469,1777566639000,-151.0,0.00018904,2]
[421404471,1777566639000,-151.0,0.00018904,2]
[421404474,1777566639000,-151.0,0.00018904,2]
[421404404,1777566639000,-209.93,0.00018,2]
[421404446,1777566639000,-2150.738,0.00018436,2]
[421404441,1777566639000,-241.78217586,0.000184,2]
[421404467,1777566639000,-160.0,0.00018904,2]
[421404437,1777566639000,-1529.87152756,0.000184,2]
[421404436,1777566639000,-1671.55752442,0.000184,2]
[421404411,1777566639000,-151.0,0.00018,2]
[421404403,1777566639000,-185.01464937,0.00018,2]
[421404417,1777566639000,-209.925091,0.00018,2]
[421404416,1777566639000,-209.925091,0.00018,2]
[421404414,1777566639000,-209.925091,0.00018,2]
[421404426,1777566639000,-169.06068763,0.000182,2]
[421404422,1777566639000,-1671.55752442,0.000182,2]
[421404424,1777566639000,-186.6749303,0.000182,2]
[421404415,1777566639000,-209.925091,0.00018,2]
[421404419,1777566639000,-188.6,0.00018015,2]
[421404425,1777566639000,-168.59870127,0.000182,2]
[421404420,1777566639000,-3787.715295,0.00018099,2]
[421404409,1777566639000,-151.0,0.00018,2]
[421404423,1777566639000,-1529.87152756,0.000182,2]
[421404421,1777566639000,-409.829,0.00018121,2]
[421404435,1777566639000,-305.0,0.00018317,2]
[421404433,1777566639000,-1854.20746333,0.00018261,2]
[421404432,1777566639000,-188.6,0.00018214,2]
[421404430,1777566639000,-241.78217586,0.000182,2]
[421404431,1777566639000,-185.01464937,0.000182,2]
[421404434,1777566639000,-151.0,0.000183,2]
[421404429,1777566639000,-221.47176059,0.000182,2]
[421404427,1777566639000,-172.06312046,0.000182,2]
[421404438,1777566639000,-168.59870127,0.000184,2]
[421404428,1777566639000,-226.11831747,0.000182,2]
[421404418,1777566639000,-4157.59898815,0.00018005,2]
[421404439,1777566639000,-169.06068763,0.000184,2]
[421404529,1777566640000,-188.6,0.00019008,5]
[421404550,1777566640000,-800.0,0.00019099,2]
[421404525,1777566640000,-2230.315306,0.00018984,2]
[421404536,1777566640000,-212.5,0.00019033,2]
[421404538,1777566640000,-207.78,0.00019043,2]
[421404548,1777566640000,-1613.0,0.00019096,2]
[421404540,1777566640000,-1785.96524555,0.00019063,2]
[421404554,1777566640000,-800.0,0.00019116,2]
[421404542,1777566640000,-197.47,0.00019063,2]
[421404531,1777566640000,-216.18,0.00019031,2]
[421404561,1777566640000,-800.0,0.0001915,2]
[421404556,1777566640000,-800.0,0.00019124,2]
[421404558,1777566640000,-800.0,0.00019145,2]
[421404546,1777566640000,-800.0,0.00019096,2]
[421404544,1777566640000,-29839.01190877,0.00019078,2]
[421404560,1777566640000,-800.0,0.00019146,2]
[421404563,1777566640000,-800.0,0.00019152,2]
[421404565,1777566640000,-800.0,0.00019153,2]
[421404567,1777566640000,-184.1,0.00019168,2]
[421404575,1777566640000,-500.0,0.00019173,2]
[421404523,1777566640000,-891.0,0.00018904,2]
[421404577,1777566640000,-500.0,0.00019173,2]
[421404552,1777566640000,-800.0,0.00019111,2]
[421404533,1777566640000,-258.0,0.00019033,2]
[421404508,1777566640000,-891.0,0.00018904,2]
[421404521,1777566640000,-891.0,0.00018904,2]
[421404579,1777566640000,-500.0,0.00019173,2]
[421404478,1777566640000,-323.279302,0.00018904,2]
[421404486,1777566640000,-891.0,0.00018904,2]
[421404476,1777566640000,-151.0,0.00018904,2]
[421404484,1777566640000,-323.279302,0.00018904,2]
[421404480,1777566640000,-323.279302,0.00018904,2]
[421404482,1777566640000,-323.279302,0.00018904,2]
[421404490,1777566640000,-891.0,0.00018904,2]
[421404488,1777566640000,-891.0,0.00018904,2]
[421404503,1777566640000,-891.0,0.00018904,2]
[421404506,1777566640000,-891.0,0.00018904,2]
[421404520,1777566640000,-891.0,0.00018904,2]
[421404493,1777566640000,-891.0,0.00018904,2]
[421404491,1777566640000,-891.0,0.00018904,2]
[421404505,1777566640000,-891.0,0.00018904,2]
[421404497,1777566640000,-891.0,0.00018904,2]
[421404510,1777566640000,-891.0,0.00018904,2]
[421404499,1777566640000,-891.0,0.00018904,2]
[421404501,1777566640000,-891.0,0.00018904,2]
[421404514,1777566640000,-891.0,0.00018904,2]
[421404512,1777566640000,-891.0,0.00018904,2]
[421404518,1777566640000,-891.0,0.00018904,2]
[421404527,1777566640000,-31096.2754728,0.00019,10]
[421404516,1777566640000,-891.0,0.00018904,2]
[421404495,1777566640000,-891.0,0.00018904,2]
[421404581,1777566640000,-500.0,0.00019173,2]
[421404588,1777566640000,-500.0,0.00019173,2]
[421404582,1777566640000,-235.30048439,0.00019173,2]
[421404622,1777566640000,-500.0,0.00019178,2]
[421404623,1777566640000,-500.0,0.00019178,2]
[421404624,1777566640000,-563.23,0.00019178,2]
[421404625,1777566640000,-500.0,0.00019178,2]
[421404627,1777566640000,-500.0,0.00019178,2]
[421404626,1777566640000,-500.0,0.00019178,2]
[421404630,1777566640000,-500.0,0.00019178,2]
[421404628,1777566640000,-500.0,0.00019178,2]
[421404629,1777566640000,-714.13,0.00019178,2]
[421404633,1777566640000,-500.0,0.00019178,2]
[421404631,1777566640000,-500.0,0.00019178,2]
[421404632,1777566640000,-500.0,0.00019178,2]
[421404634,1777566640000,-500.0,0.00019178,2]
[421404635,1777566640000,-577.17,0.00019178,2]
[421404636,1777566640000,-500.0,0.00019178,2]
[421404641,1777566640000,-500.0,0.00019178,2]
[421404639,1777566640000,-500.0,0.00019178,2]
[421404637,1777566640000,-342.44185869,0.00019178,2]
[421404640,1777566640000,-500.0,0.00019178,2]
[421404638,1777566640000,-539.36,0.00019178,2]
[421404643,1777566640000,-1202.48,0.00019178,2]
[421404586,1777566640000,-500.0,0.00019173,2]
[421404644,1777566640000,-500.0,0.00019178,2]
[421404618,1777566640000,-500.0,0.00019178,2]
[421404614,1777566640000,-500.0,0.00019178,2]
[421404642,1777566640000,-500.0,0.00019178,2]
[421404616,1777566640000,-181.11923322,0.00019178,2]
[421404615,1777566640000,-500.0,0.00019178,2]
[421404584,1777566640000,-500.0,0.00019173,2]
[421404571,1777566640000,-500.0,0.00019173,2]
[421404569,1777566640000,-800.0,0.00019169,2]
[421404599,1777566640000,-500.0,0.00019173,2]
[421404590,1777566640000,-501.33775177,0.00019173,2]
[421404596,1777566640000,-498.7325893,0.00019173,2]
[421404592,1777566640000,-500.0,0.00019173,2]
[421404602,1777566640000,-248.31137499,0.00019173,2]
[421404603,1777566640000,-250.0,0.00019175,2]
[421404606,1777566640000,-500.0,0.00019178,2]
[421404573,1777566640000,-500.0,0.00019173,2]
[421404605,1777566640000,-800.0,0.00019177,2]
[421404600,1777566640000,-500.0,0.00019173,2]
[421404612,1777566640000,-500.0,0.00019178,2]
[421404611,1777566640000,-500.0,0.00019178,2]
[421404621,1777566640000,-500.0,0.00019178,2]
[421404620,1777566640000,-2744.08,0.00019178,2]
[421404617,1777566640000,-500.0,0.00019178,2]
[421404609,1777566640000,-500.0,0.00019178,2]
[421404607,1777566640000,-500.0,0.00019178,2]
[421404598,1777566640000,-500.0,0.00019173,2]
[421404594,1777566640000,-500.0,0.00019173,2]
[421404619,1777566640000,-500.0,0.00019178,2]
[421404675,1777566641000,-500.0,0.00019178,2]
[421404677,1777566641000,-700.28,0.00019178,2]
[421404678,1777566641000,-500.0,0.00019178,2]
[421404669,1777566641000,-2973.3546,0.00019178,2]
[421404671,1777566641000,-500.0,0.00019178,2]
[421404672,1777566641000,-500.0,0.00019178,2]
[421404674,1777566641000,-986.45,0.00019178,2]
[421404673,1777566641000,-157.55828067,0.00019178,2]
[421404676,1777566641000,-500.0,0.00019178,2]
[421404686,1777566641000,-500.0,0.00019178,2]
[421404679,1777566641000,-500.0,0.00019178,2]
[421404681,1777566641000,-500.0,0.00019178,2]
[421404685,1777566641000,-500.0,0.00019178,2]
[421404684,1777566641000,-500.0,0.00019178,2]